bitfinex/quotes_BTCUSD_20250417
["timestamp","ask_amount","ask_price","bid_price","bid_amount"]
[1744911927105,0.0008446,84966.0,84965.0,0.25371545]
[1744911929858,0.0008446,84966.0,84965.0,0.59371545]
[1744911930079,0.0008446,84966.0,84965.0,0.71316336]
[1744911930263,0.0008446,84966.0,84965.0,0.70218744]
[1744911931251,0.0008446,84966.0,84965.0,0.70850618]
[1744911931452,0.0008446,84966.0,84965.0,0.7102045]
[1744911932537,0.23623287,84966.0,84965.0,0.35536555]
[1744911932740,0.28313287,84966.0,84965.0,0.01536555]
[1744911933093,0.33223287,84966.0,84965.0,0.00734849]
[1744911934478,0.33041875,84955.0,84945.0,0.23544511]
[1744911934916,0.01177204,84947.0,84944.0,0.34]
[1744911935129,0.24721189,84948.0,84944.0,0.34]
[1744911935330,0.24721189,84948.0,84945.0,0.00802051]
[1744911935532,0.23544095,84947.0,84944.0,0.34862756]
[1744911935737,0.23544646,84945.0,84944.0,0.34862756]
[1744911935942,0.23544646,84945.0,84944.0,0.00862756]
[1744911936384,0.23544646,84945.0,84941.0,0.34]
[1744911936385,0.24722398,84944.0,84941.0,0.34]
[1744911936677,0.01177246,84944.0,84941.0,0.5754565]
[1744911936969,0.24721884,84945.0,84941.0,0.5754565]
[1744911937171,0.01177218,84946.0,84944.0,0.34]
[1744911937587,0.24721619,84946.0,84944.0,0.34878274]
[1744911938590,0.23544646,84945.0,84944.0,0.00878274]
[1744911939098,0.01177176,84949.0,84946.0,0.34]
[1744911939521,0.23543834,84948.0,84946.0,0.34]
[1744911939819,0.23544092,84947.0,84946.0,0.34]
[1744911940740,0.23544092,84947.0,84946.0,0.01096774]
[1744911942330,0.23544646,84945.0,84944.0,0.00874591]
[1744911942826,0.2354577,84941.0,84939.0,0.34]
[1744911943025,0.23546032,84940.0,84939.0,0.34]
[1744911943243,0.2472457,84936.0,84934.0,0.34]
[1744911943511,0.23546811,84938.0,84936.0,0.34]
[1744911943774,0.23546864,84937.0,84936.0,0.34]
[1744911944639,0.23547418,84935.0,84934.0,0.00886321]
[1744911945113,0.23547973,84933.0,84932.0,0.36921682]
[1744911945694,0.23547973,84933.0,84932.0,0.02921682]
[1744911945991,0.24725118,84934.0,84931.0,0.34]
[1744911946204,0.24725118,84934.0,84931.0,0.57548461]
[1744911946429,0.24724207,84937.0,84934.0,0.34]
[1744911946642,0.23547149,84936.0,84934.0,0.34]
[1744911946858,0.2472423,84937.0,84934.0,0.34]
[1744911947063,0.23547173,84936.0,84934.0,0.34]
[1744911947475,0.23547173,84936.0,84935.0,0.00821669]
[1744911947854,0.23547173,84936.0,84935.0,0.01095714]
[1744911948233,0.23547173,84936.0,84935.0,0.01917427]
[1744911951167,0.23547173,84936.0,84935.0,0.01095714]
[1744911951422,0.23647173,84936.0,84935.0,0.01917557]
[1744911955299,0.28257173,84936.0,84935.0,0.01917557]
[1744911955508,0.33217173,84936.0,84935.0,0.01095714]
[1744911955708,0.45161964,84936.0,84935.0,0.01095714]
[1744911956890,0.23548804,84930.0,84929.0,0.0008426]
[1744911957103,0.28398804,84930.0,84929.0,0.0008426]
[1744911957502,0.33228804,84930.0,84929.0,0.0008426]
[1744911961109,0.01177412,84932.0,84929.0,0.0008426]
[1744911961324,0.23747173,84936.0,84934.0,0.23547582]
[1744911961325,0.002,84936.0,84934.0,0.23547582]
[1744911961541,0.002,84936.0,84935.0,0.46180237]
[1744911961748,0.0464,84957.0,84955.0,0.23541706]
[1744911961951,0.001,84957.0,84956.0,0.34]
[1744911962160,0.01277066,84957.0,84956.0,0.00558652]
[1744911962364,0.001,84957.0,84956.0,0.00558652]
[1744911962569,0.001,84957.0,84956.0,0.34]
[1744911962774,0.001,84957.0,84956.0,0.46503486]
[1744911962977,0.0008446,84966.0,84957.0,0.2354132]
[1744911963183,0.00097944,84966.0,84965.0,0.57539104]
[1744911963389,0.00097944,84966.0,84965.0,0.69483895]
[1744911963595,0.00097944,84966.0,84965.0,0.71484886]
[1744911964754,0.0024216,84979.0,84978.0,0.57535503]
[1744911964954,0.00287122,84979.0,84978.0,0.58072413]
[1744911965820,0.00287122,84979.0,84978.0,0.3453691]
[1744911965936,0.00287122,84979.0,84978.0,0.356289]
[1744911966139,0.00287122,84979.0,84978.0,0.59164403]
[1744911966614,0.23822348,84979.0,84978.0,0.36499914]
[1744911966821,0.23822348,84979.0,84978.0,0.3723459]
[1744911967602,0.23822348,84979.0,84978.0,0.36499914]
[1744911968811,0.23822348,84979.0,84978.0,0.38803441]
[1744911969008,0.23822348,84979.0,84978.0,0.37711451]
[1744911969205,0.23822348,84979.0,84978.0,0.03711451]
[1744911969406,0.23822348,84979.0,84978.0,0.03174541]
[1744911969764,0.23822348,84979.0,84970.0,0.34]
[1744911969765,0.23537442,84971.0,84970.0,0.34]
[1744911969971,0.24713891,84973.0,84970.0,0.36261637]
[1744911970174,0.23537293,84972.0,84970.0,0.36775943]
[1744911970554,0.23537293,84972.0,84970.0,0.02775943]
[1744911970896,0.24713248,84975.0,84971.0,0.0109048]
[1744911971032,0.0117683,84974.0,84972.0,0.34]
[1744911971535,0.0117683,84974.0,84973.0,0.01249059]
[1744911971735,0.2499913,84979.0,84973.0,0.24785947]
[1744911971955,0.00287122,84979.0,84977.0,0.23535686]
[1744911972155,0.00287122,84979.0,84978.0,0.00514524]
[1744911972373,0.00287122,84979.0,84978.0,0.35249277]
[1744911972806,0.00287122,84979.0,84978.0,0.36339757]
[1744911973253,0.00287122,84979.0,84978.0,0.48284548]
[1744911974719,0.00287122,84979.0,84978.0,0.50626552]
[1744911978581,0.000843,84999.0,84995.0,0.57530795]
[1744911978789,0.00090217,84996.0,84995.0,0.69973199]
[1744911979185,0.00090217,84996.0,84995.0,0.48267637]
[1744911979929,0.23620736,84996.0,84995.0,0.48267637]
[1744911980156,0.00090217,84996.0,84995.0,0.48267637]
[1744911981253,0.00090217,84996.0,84995.0,0.36322846]
[1744911981752,0.00100217,84996.0,84995.0,0.36322846]
[1744911982358,0.00200217,84996.0,84995.0,0.36322846]
[1744911982732,0.00200217,84996.0,84995.0,0.02322846]
[1744911982934,0.05020217,84996.0,84995.0,0.02322846]
[1744911983134,0.05020217,84996.0,84995.0,0.01825233]
[1744911983549,0.05020217,84996.0,84995.0,0.0109048]
[1744911983803,0.05020217,84996.0,84978.0,0.00887919]
[1744911983804,0.01176678,84985.0,84982.0,0.0109048]
[1744911984008,0.23533841,84984.0,84982.0,0.0109048]
[1744911984632,0.23537165,84972.0,84971.0,0.0109048]
[1744911984801,0.23537165,84972.0,84971.0,0.35585664]
[1744911985637,0.23537165,84972.0,84971.0,0.36320448]
[1744911986828,0.23547165,84972.0,84971.0,0.02320448]
[1744911989289,0.0001,84972.0,84971.0,0.02320448]
[1744911989477,0.0001,84972.0,84971.0,0.73492104]
[1744911989655,0.0001,84972.0,84971.0,0.73256766]
[1744911989856,0.0001,84972.0,84971.0,0.65759532]
[1744911991872,0.0001,84972.0,84971.0,0.65859532]
[1744911992596,0.01176539,84995.0,84992.0,0.23531441]
[1744911992937,0.2380707,84994.0,84993.0,0.34]
[1744911993662,0.2380707,84994.0,84993.0,0.00866627]
[1744911993864,0.24983623,84994.0,84991.0,0.34]
[1744911994058,0.00275998,84994.0,84993.0,0.34]
[1744911994290,0.00275998,84994.0,84989.0,0.35176622]
[1744911994490,0.01452551,84994.0,84991.0,0.57531903]
[1744911994961,0.23531388,84993.0,84991.0,0.34]
[1744911995161,0.23531626,84992.0,84991.0,0.34]
[1744911995419,0.23531626,84992.0,84983.0,0.24710804]
[1744911995659,0.247089,84990.0,84986.0,0.34]
[1744911995864,0.23531626,84992.0,84988.0,0.23532532]
[1744911996065,0.24708527,84991.0,84988.0,0.23532532]
[1744911996260,0.00275998,84994.0,84993.0,0.57531349]
[1744911996468,0.00275998,84994.0,84993.0,0.34]
[1744911997852,0.2380707,84994.0,84993.0,0.34]
[1744911999216,0.00275998,84994.0,84993.0,0.34]
[1744912000036,0.00275998,84994.0,84993.0,0.57531349]
[1744912000664,0.00275998,84994.0,84993.0,0.6947614]
[1744912001239,0.00275998,84994.0,84993.0,0.7433614]
[1744912001548,0.00210217,84996.0,84995.0,0.57530795]
[1744912001698,0.00210217,84996.0,84995.0,0.69475586]
[1744912001914,0.00210217,84996.0,84995.0,0.70570072]
[1744912003591,0.00210217,84996.0,84995.0,0.69475586]
[1744912004268,0.000843,84999.0,84998.0,0.57529965]
[1744912004488,0.000843,84999.0,84998.0,0.69474756]
[1744912007009,0.000843,84999.0,84998.0,0.70569005]
[1744912007573,0.000843,84999.0,84998.0,0.69474756]
[1744912009812,0.000843,84999.0,84998.0,0.70928841]
[1744912011390,0.000843,84999.0,84998.0,0.71028841]
[1744912011908,0.0008428,85000.0,84999.0,0.35454085]
[1744912011909,1e-08,85000.0,84999.0,0.35454085]
[1744912012124,1e-08,85000.0,84999.0,0.47398876]
[1744912013242,1e-08,85000.0,84998.0,0.15640649]
[1744912013475,1e-08,85000.0,84999.0,0.12180044]
[1744912014865,1e-08,85000.0,84999.0,0.35474479]
[1744912015293,0.00080441,85004.0,85003.0,0.57528581]
[1744912015515,0.00080441,85004.0,85003.0,0.69473372]
[1744912017301,0.00080441,85004.0,85003.0,0.70927457]
[1744912017696,0.00119559,85009.0,85008.0,0.57527197]
[1744912017900,0.00125905,85009.0,85008.0,0.69471988]
[1744912018605,0.0004216,85013.0,85012.0,0.58980175]
[1744912018799,0.0004216,85013.0,85012.0,0.70924966]
[1744912019039,0.0004215,85028.0,85020.0,0.01176193]
[1744912019266,0.00048496,85028.0,85027.0,0.5752194]
[1744912019761,0.00048496,85028.0,85027.0,0.3489284]
[1744912022011,0.23570159,85028.0,85027.0,0.3489284]
[1744912022222,0.23570159,85028.0,85027.0,0.36882791]
[1744912023302,0.00048496,85028.0,85027.0,0.36882791]
[1744912023457,0.00048496,85028.0,85027.0,0.60504731]
[1744912027054,0.00048496,85028.0,85027.0,0.72549522]
[1744912027253,0.00048496,85028.0,85027.0,0.74003607]
[1744912032168,0.0004214,85034.0,85027.0,0.50481667]
[1744912032343,0.0004214,85034.0,85033.0,0.58974365]
[1744912032558,0.0004214,85034.0,85033.0,0.58427374]
[1744912032770,0.0004214,85034.0,85033.0,0.81947654]
[1744912033395,0.2351481,85053.0,85049.0,0.23515759]
[1744912033771,0.2351481,85053.0,85047.0,0.0117582]
[1744912033772,0.01175696,85056.0,85051.0,0.01175765]
[1744912033955,0.01175765,85051.0,85046.0,0.23516555]
[1744912034159,0.01175751,85052.0,85046.0,0.11944791]
[1744912034359,0.23515302,85051.0,85045.0,0.23516915]
[1744912034630,0.24691311,85052.0,85047.0,0.34]
[1744912034792,0.01175737,85053.0,85047.0,0.57516331]
[1744912035193,0.01175737,85053.0,85051.0,0.34]
[1744912035495,0.24703724,85054.0,85051.0,0.34]
[1744912036219,0.00013477,85054.0,85053.0,0.57514749]
[1744912036460,0.00013477,85054.0,85053.0,0.34]
[1744912036795,0.00013477,85054.0,85053.0,0.57514749]
[1744912037002,0.00013477,85054.0,85053.0,0.34]
[1744912038206,0.00013477,85054.0,85053.0,0.57514749]
[1744912044567,0.00013477,85054.0,85053.0,0.23514749]
[1744912044764,0.00013477,85054.0,85053.0,0.3545954]
[1744912046300,0.00013477,85054.0,85052.0,0.23514886]
[1744912046512,0.00013477,85054.0,85051.0,0.01175765]
[1744912046712,0.00013477,85054.0,85051.0,0.13120556]
[1744912046913,0.00013477,85054.0,85053.0,0.23514749]
[1744912048920,0.23512818,85060.0,85056.0,0.23513796]
[1744912049117,0.01175626,85061.0,85058.0,0.23513367]
[1744912049329,0.24688175,85061.0,85058.0,0.23513367]
[1744912049557,0.24688175,85061.0,85055.0,0.23514196]
[1744912049558,0.01175654,85059.0,85057.0,0.23513627]
[1744912049819,0.01175626,85061.0,85059.0,0.23513073]
[1744912050023,0.01175626,85061.0,85059.0,0.23513058]
[1744912050425,0.01175613,85062.0,85060.0,0.23512814]
[1744912050645,0.0004212,85063.0,85061.0,0.2351246]
[1744912051110,0.2472976,85063.0,85060.0,0.23512814]
[1744912051550,0.2472976,85063.0,85057.0,0.235134]
[1744912051551,0.0117564,85060.0,85057.0,0.235134]
[1744912051891,0.2468821,85061.0,85058.0,0.23513128]
[1744912052120,0.2468821,85061.0,85054.0,0.23514473]
[1744912052121,0.01175668,85058.0,85054.0,0.23514473]
[1744912052287,0.01175668,85058.0,85049.0,0.0089926]
[1744912052288,0.28295579,85050.0,85049.0,0.0089926]
[1744912052637,0.0478,85050.0,85049.0,0.23515855]
[1744912053445,0.0478,85050.0,85049.0,0.23615855]
[1744912056217,0.06197719,85063.0,85052.0,0.01175751]
[1744912056429,0.24688295,85061.0,85058.0,0.23513091]
[1744912056988,0.06197719,85063.0,85057.0,0.23513098]
[1744912057188,0.01175626,85061.0,85058.0,0.23513202]
[1744912057398,0.0117564,85060.0,85057.0,0.23513098]
[1744912057807,0.0117564,85060.0,85058.0,0.23513364]
[1744912058431,0.01175626,85061.0,85059.0,0.24607233]
[1744912059039,0.01175626,85061.0,85059.0,0.01094143]
[1744912059652,0.24688166,85061.0,85060.0,0.01094143]
[1744912059847,0.29709729,85063.0,85060.0,0.01094143]
[1744912060011,0.23512538,85061.0,85060.0,0.01094143]
[1744912060753,0.01175668,85058.0,85054.0,0.23514359]
[1744912060964,0.01175654,85059.0,85056.0,0.23513918]
[1744912062085,0.01175654,85059.0,85057.0,0.23513592]
[1744912062470,0.24688617,85060.0,85057.0,0.01094583]
[1744912062685,0.01175626,85061.0,85057.0,0.24608185]
[1744912062852,0.24688718,85060.0,85057.0,0.24608185]
[1744912063442,0.0001,85059.0,85057.0,0.23513602]
[1744912063647,0.01175668,85058.0,85054.0,0.23514236]
[1744912063852,0.01185654,85059.0,85056.0,0.2351392]
[1744912064032,0.01185654,85059.0,85057.0,0.2351358]
[1744912064472,0.24698804,85059.0,85057.0,0.23513629]
[1744912064743,0.0001,85059.0,85057.0,0.23513629]
[1744912064921,0.23514708,85054.0,85051.0,0.23515261]
[1744912065125,0.01175696,85056.0,85054.0,0.23514445]
[1744912065321,0.01175696,85056.0,85053.0,0.23514724]
[1744912065527,0.24689912,85055.0,85052.0,0.23514491]
[1744912065681,0.24689671,85056.0,85053.0,0.23514679]
[1744912066546,0.01175723,85054.0,85049.0,0.00994699]
[1744912066780,0.24689874,85056.0,85049.0,0.00994699]
[1744912067281,0.01175709,85055.0,85049.0,0.00994699]
[1744912067482,0.2351489,85053.0,85050.0,0.23515579]
[1744912067655,0.01175723,85054.0,85050.0,0.23515579]
[1744912068684,0.24691103,85052.0,85049.0,0.00994699]
[1744912068930,0.2351532,85051.0,85049.0,0.00994699]
[1744912069135,0.01175751,85052.0,85049.0,0.00994699]
[1744912069336,0.0455,85053.0,85050.0,0.34]
[1744912069542,0.05725737,85053.0,85050.0,0.34]
[1744912069743,0.0455,85053.0,85051.0,0.2351523]
[1744912070665,0.29240594,85053.0,85050.0,0.34]
[1744912070872,0.05725737,85053.0,85051.0,0.23515213]
[1744912071092,0.0455,85053.0,85051.0,0.23515213]
[1744912071317,0.0455,85053.0,85051.0,0.23615213]
[1744912072781,0.0001,85059.0,85056.0,0.23513669]
[1744912073017,0.0001,85059.0,85057.0,0.23513555]
[1744912073173,0.01175682,85057.0,85055.0,0.23514142]
[1744912073803,0.01175696,85056.0,85052.0,0.2351493]
[1744912074004,0.24689364,85057.0,85054.0,0.23514349]
[1744912074380,0.0001,85059.0,85055.0,0.23514108]
[1744912074586,0.01175668,85058.0,85055.0,0.23514108]
[1744912074819,0.01175696,85056.0,85053.0,0.23514497]
[1744912075012,0.01175682,85057.0,85054.0,0.23514311]
[1744912075230,0.01175682,85057.0,85055.0,0.23514086]
[1744912075436,0.24689113,85058.0,85055.0,0.23514086]
[1744912075658,0.01175696,85056.0,85054.0,0.23514469]
[1744912075887,0.0001,85059.0,85053.0,0.01175737]
[1744912076118,0.24689263,85058.0,85054.0,0.23514473]
[1744912076340,0.01175682,85057.0,85055.0,0.23514158]
[1744912076658,0.01175668,85058.0,85055.0,0.23514158]
[1744912076886,0.0001,85059.0,85057.0,0.23513643]
[1744912077783,0.0001,85059.0,85056.0,0.23513814]
[1744912078018,0.0001,85059.0,85055.0,0.23514099]
[1744912078240,0.0001,85059.0,85058.0,0.23513367]
[1744912081735,0.0001,85059.0,85058.0,0.23613367]
[1744912083109,0.0001,85059.0,85058.0,0.69893266]
[1744912083327,0.0004213,85064.0,85063.0,0.23511985]
[1744912083534,0.0004213,85064.0,85063.0,0.36910861]
[1744912084294,0.0004213,85064.0,85063.0,0.70910861]
[1744912084492,0.001175,85074.0,85068.0,0.57510603]
[1744912084722,0.001175,85074.0,85068.0,0.83775394]
[1744912085082,0.001175,85074.0,85068.0,0.60264791]
[1744912085285,0.001175,85074.0,85068.0,0.83775394]
[1744912085495,0.001175,85074.0,85068.0,0.49775394]
[1744912086682,0.001175,85074.0,85068.0,0.35455394]
[1744912087474,0.001175,85074.0,85068.0,0.69455394]
[1744912087690,0.001175,85074.0,85068.0,0.70909479]
[1744912088266,0.001175,85074.0,85068.0,0.75689479]
[1744912089059,0.0133056,85084.0,85083.0,0.32856458]
[1744912089060,0.01230561,85084.0,85083.0,0.32856458]
[1744912089291,0.01275475,85084.0,85083.0,0.94575334]
[1744912089465,0.01275475,85084.0,85083.0,0.88391249]
[1744912089905,0.01275475,85084.0,85083.0,0.83771249]
[1744912090706,0.01275475,85084.0,85083.0,0.85651157]
[1744912091111,0.01275475,85084.0,85083.0,0.51091094]
[1744912091316,0.29571657,85084.0,85083.0,0.36771094]
[1744912091551,0.29571657,85084.0,85061.0,0.0496]
[1744912091552,0.01175585,85064.0,85039.0,0.02781515]
[1744912091768,0.0479,85071.0,85070.0,0.01175502]
[1744912091976,0.0479,85071.0,85069.0,0.23510082]
[1744912092387,0.04780124,85071.0,85069.0,0.23510082]
[1744912092748,0.04780124,85071.0,85070.0,0.34]
[1744912095134,0.04780124,85071.0,85070.0,0.34877104]
[1744912097468,0.04790124,85071.0,85070.0,0.34877104]
[1744912098390,0.0001,85071.0,85070.0,0.34877104]
[1744912098659,0.0001,85071.0,85070.0,0.35610953]
[1744912099442,0.0001,85071.0,85070.0,0.3670205]
[1744912101242,0.0001,85071.0,85070.0,0.0270205]
[1744912101445,0.0465,85071.0,85070.0,0.0270205]
[1744912101847,0.0001,85071.0,85070.0,0.35610953]
[1744912102115,0.0001,85071.0,85070.0,0.46821895]
[1744912105156,0.0001,85071.0,85070.0,0.47555679]
[1744912106498,0.0001,85071.0,85070.0,0.49009764]
[1744912106706,0.0001,85071.0,85070.0,0.63545764]
[1744912108035,0.0001,85071.0,85070.0,0.87055814]
[1744912108150,0.0001,85071.0,85070.0,0.8632203]
[1744912109330,0.0001,85071.0,85070.0,0.87055793]
[1744912110355,0.0001,85071.0,85070.0,0.85601708]
[1744912111345,0.0001,85071.0,85070.0,0.84867945]
[1744912113284,0.0486,85071.0,85070.0,0.84867945]
[1744912114336,0.0486,85071.0,85070.0,0.85601738]
[1744912115475,0.0486,85071.0,85070.0,0.84867945]
[1744912115712,0.0486,85071.0,85070.0,0.70331945]
[1744912117134,0.0486,85071.0,85070.0,0.00877104]
[1744912117341,0.0486,85071.0,85070.0,0.24387154]
[1744912117546,0.0486,85071.0,85070.0,0.2351005]
[1744912117795,0.01175585,85064.0,85039.0,0.01901508]
[1744912118049,0.24687899,85062.0,85059.0,0.23513014]
[1744912118286,0.05875599,85063.0,85059.0,0.23513014]
[1744912118514,0.29387658,85063.0,85060.0,0.23512788]
[1744912118736,0.047,85063.0,85061.0,0.57512446]
[1744912121507,0.037,85063.0,85061.0,0.57512446]
[1744912121743,0.039,85063.0,85061.0,0.57512446]
[1744912124361,0.039,85063.0,85062.0,0.57512261]
[1744912128745,0.039,85063.0,85062.0,0.58374894]
[1744912129481,0.04,85063.0,85062.0,0.34862633]
[1744912129689,0.32371985,85063.0,85062.0,0.34862633]
[1744912129899,0.32371985,85063.0,85062.0,0.00862633]
[1744912130251,0.32371985,85063.0,85044.0,0.1454]
[1744912130252,0.01175778,85050.0,85047.0,0.23516225]
[1744912130457,0.01175778,85050.0,85046.0,0.34]
[1744912130458,0.23516132,85048.0,85046.0,0.34]
[1744912131236,0.01175834,85046.0,85044.0,0.34]
[1744912131435,0.01175834,85046.0,85044.0,0.34013477]
[1744912131861,0.24692647,85046.0,85044.0,0.34013477]
[1744912132082,0.0967,85045.0,85044.0,0.00013477]
[1744912135753,0.0489,85045.0,85044.0,0.00013477]
[1744912138159,0.001,85046.0,85045.0,0.23516961]
[1744912140084,0.002,85048.0,85047.0,0.23516408]
[1744912140292,0.002,85048.0,85047.0,0.57516408]
[1744912141730,0.29199648,85056.0,85053.0,0.23514569]
[1744912141960,0.29199648,85056.0,85052.0,0.23514989]
[1744912141961,0.24689913,85055.0,85052.0,0.23514989]
[1744912142169,0.24689913,85055.0,85048.0,0.34]
[1744912142170,0.01175709,85055.0,85048.0,0.34]
[1744912142393,0.23515671,85050.0,85048.0,0.34]
[1744912142597,0.24691099,85051.0,85048.0,0.34]
[1744912142798,0.1,86439.0,85048.0,0.35175806]
[1744912142799,0.0461,85056.0,85048.0,0.35175806]
[1744912142976,0.05785696,85056.0,85053.0,0.23514495]
[1744912143308,0.01175737,85053.0,85050.0,0.23515505]
[1744912143757,0.01175723,85054.0,85051.0,0.23515265]
[1744912143988,0.01175751,85052.0,85050.0,0.2346599]
[1744912144222,0.01175751,85052.0,85049.0,0.23515648]
[1744912144453,0.23514941,85053.0,85051.0,0.23515302]
[1744912144660,0.01175723,85054.0,85051.0,0.23515302]
[1744912144661,0.2469028,85054.0,85051.0,0.23515302]
[1744912144860,0.23515026,85052.0,85046.0,0.23516535]
[1744912145134,0.24690067,85055.0,85045.0,0.34]
[1744912145135,0.0117582,85047.0,85045.0,0.34]
[1744912145351,0.2469161,85050.0,85045.0,0.2351692]
[1744912145536,0.0457,85048.0,85046.0,0.23516539]
[1744912145783,0.05745806,85048.0,85046.0,0.23516605]
[1744912146039,0.0457,85048.0,85047.0,0.23516408]
[1744912146250,0.23516961,85045.0,85044.0,0.00013477]
[1744912146490,0.23516881,85046.0,85044.0,0.00013477]
[1744912147179,0.23516961,85045.0,85044.0,0.00013477]
[1744912148195,0.23516881,85046.0,85044.0,0.00013477]
[1744912148396,0.29612419,85047.0,85044.0,0.00013477]
[1744912148553,0.23516961,85045.0,85044.0,0.00013477]
[1744912148954,0.23516689,85046.0,85044.0,0.00013477]
[1744912149448,0.0492,85047.0,85044.0,0.00013477]
[1744912149655,0.0467,85048.0,85047.0,0.23516408]
[1744912149877,0.0467,85048.0,85046.0,0.23516685]
[1744912150064,0.0117582,85047.0,85044.0,0.00013477]
[1744912150753,0.0467,85048.0,85047.0,0.23516408]
[1744912152222,0.0467,85048.0,85046.0,0.23516685]
[1744912152452,0.0467,85048.0,85044.0,0.23530535]
[1744912152453,0.05845806,85048.0,85044.0,0.23530535]
[1744912152649,0.24692436,85047.0,85044.0,0.23530535]
[1744912152956,0.24692436,85047.0,85044.0,0.00013477]
[1744912153157,0.23516961,85045.0,85044.0,0.00013477]
[1744912155579,0.23516826,85046.0,85044.0,0.00013477]
[1744912155777,0.23516829,85046.0,85044.0,0.00013477]
[1744912156009,0.0467,85048.0,85047.0,0.23516408]
[1744912156269,0.001,85048.0,85047.0,0.23516408]
[1744912162637,0.001,85048.0,85047.0,0.57516408]
[1744912172044,0.002,85048.0,85047.0,0.57516408]
[1744912174785,0.0473,85048.0,85047.0,0.34]
[1744912175005,0.23516961,85045.0,85044.0,0.00013477]
[1744912175208,0.32716961,85045.0,85044.0,0.00013477]
[1744912175450,0.32720833,85031.0,85030.0,0.2885207]
[1744912175612,0.23521663,85028.0,85021.0,0.34]
[1744912175813,0.28141663,85028.0,85016.0,0.000843]
[1744912176020,0.23526643,85010.0,84987.0,0.01837461]
[1744912176223,0.28326643,85010.0,85009.0,0.01670164]
[1744912176420,0.28326643,85010.0,85009.0,0.000843]
[1744912176632,0.28326643,85010.0,85009.0,0.00951695]
[1744912176831,0.048,85010.0,85009.0,0.000843]
[1744912177432,0.048,85010.0,85009.0,0.0166871]
[1744912177629,0.01176304,85012.0,85009.0,0.00090646]
[1744912177835,0.0001,85010.0,85009.0,0.00090646]
[1744912178935,0.0001,85010.0,85009.0,0.01746289]
[1744912179648,0.0001,85010.0,85009.0,0.35746289]
[1744912180271,0.0001,85010.0,85009.0,0.4769108]
[1744912180474,0.0001,85010.0,85009.0,0.4779108]
[1744912180610,0.0001,85010.0,85009.0,0.52678746]
[1744912180813,0.0001,85010.0,85009.0,0.49245165]
[1744912183045,0.0002,85010.0,85009.0,0.53805165]
[1744912183696,0.0003,85010.0,85009.0,0.53805165]
[1744912184128,0.0004,85010.0,85009.0,0.53805165]
[1744912185118,0.0005,85010.0,85009.0,0.53805165]
[1744912185879,0.0006,85010.0,85009.0,0.53805165]
[1744912186723,0.0006,85010.0,85009.0,0.77332085]
[1744912187299,0.0006,85010.0,85009.0,0.72772085]
[1744912188427,0.0006,85010.0,85009.0,0.71318]
[1744912191301,0.0006,85010.0,85009.0,0.71218]
[1744912192841,0.0006,85010.0,85009.0,0.48399061]
[1744912193040,0.0006,85010.0,85009.0,0.35471711]
[1744912193460,1e-08,85010.0,85009.0,0.37064006]
[1744912194867,1e-08,85010.0,85009.0,0.71064006]
[1744912207976,0.28516644,85010.0,85009.0,0.35592295]
[1744912208183,0.33326644,85010.0,85009.0,0.01592295]
[1744912208595,0.23529134,85001.0,85000.0,0.78771949]
[1744912208806,0.23529134,85001.0,84994.0,0.01176553]
[1744912208807,0.0117647,85000.0,84995.0,0.01176539]
[1744912208984,0.0117647,85000.0,84996.0,0.34]
[1744912208985,0.24706232,84999.0,84996.0,0.34]
[1744912209420,0.01176484,84999.0,84996.0,0.57530423]
[1744912209598,0.24706026,85000.0,84998.0,0.57529954]
[1744912209599,0.0117647,85000.0,84998.0,0.57529954]
[1744912209801,0.24705593,85001.0,84998.0,0.57529954]
[1744912209957,0.24704385,85006.0,85000.0,0.0117647]
[1744912210183,0.23526225,85012.0,85005.0,0.01176401]
[1744912210184,0.05956346,85009.0,85005.0,0.01176401]
[1744912210388,0.24704201,85006.0,85003.0,0.57528402]
[1744912212093,0.0479,85009.0,85006.0,0.34]
[1744912212253,0.05966346,85009.0,85006.0,0.34]
[1744912212673,0.23527197,85008.0,85006.0,0.34]
[1744912213309,0.24703953,85007.0,85005.0,0.34]
[1744912214073,0.01176401,85005.0,85003.0,0.23528516]
[1744912214266,0.01176401,85005.0,85001.0,0.13121247]
[1744912214950,0.01176401,85005.0,85001.0,0.11944791]
[1744912215110,0.01176415,85004.0,85001.0,0.11944791]
[1744912215306,0.24704638,85005.0,85001.0,0.36649836]
[1744912215509,0.01176401,85005.0,85001.0,0.36649836]
[1744912215933,0.0001,85005.0,85002.0,0.34]
[1744912216569,0.0001,85005.0,85004.0,0.34]
[1744912216911,0.23538027,85005.0,85004.0,0.34]
[1744912217121,0.0001,85005.0,85004.0,0.34]
[1744912217758,0.01186401,85005.0,85002.0,0.57528835]
[1744912217966,0.0001,85005.0,85003.0,0.57528513]
[1744912218200,0.0001,85005.0,85004.0,0.23528304]
[1744912218412,0.0461,85033.0,85032.0,0.57520556]
[1744912218837,0.01175903,85041.0,85036.0,0.23519424]
[1744912218838,0.23518627,85039.0,85036.0,0.23519424]
[1744912219044,0.01175903,85041.0,85039.0,0.34]
[1744912219256,0.23518344,85040.0,85039.0,0.34]
[1744912219672,0.23518344,85040.0,85039.0,0.35652541]
[1744912220104,0.23518344,85040.0,85039.0,0.01652541]
[1744912220525,0.00013468,85041.0,85037.0,0.34]
[1744912220739,0.00013468,85041.0,85039.0,0.58392605]
[1744912220946,0.00013468,85041.0,85040.0,0.11944791]
[1744912221182,0.0004218,85045.0,85042.0,0.35175889]
[1744912221408,0.0004218,85045.0,85044.0,0.34]
[1744912222102,0.0004218,85045.0,85044.0,0.45944791]
[1744912223353,0.0005218,85045.0,85044.0,0.45944791]
[1744912225225,0.0005218,85045.0,85044.0,0.69462029]
[1744912225424,0.0006218,85045.0,85044.0,0.69462029]
[1744912225652,0.0007218,85045.0,85044.0,0.69462029]
[1744912226028,0.0008218,85045.0,85044.0,0.69462029]
[1744912227652,0.0008218,85045.0,85042.0,0.24693403]
[1744912227653,0.0008218,85045.0,85042.0,0.34]
[1744912227874,0.01258028,85045.0,85043.0,0.34]
[1744912228347,0.0008218,85045.0,85043.0,0.34]
[1744912228759,0.0008218,85045.0,85043.0,0.57517251]
[1744912229307,0.23517238,85044.0,85043.0,0.34]
[1744912230223,0.01175875,85043.0,85041.0,0.34]
[1744912230838,0.23517791,85042.0,85041.0,0.34]
[1744912231288,0.23518344,85040.0,85039.0,0.00883765]
[1744912231724,0.23520548,85033.0,85031.0,0.34]
[1744912231888,0.24695232,85037.0,85031.0,0.34013468]
[1744912232096,0.01175986,85035.0,85033.0,0.34]
[1744912232433,0.23520003,85034.0,85033.0,0.34]
[1744912233336,0.23520003,85034.0,85033.0,0.00883738]
[1744912233762,0.23520003,85034.0,85032.0,0.34]
[1744912233966,0.23520003,85034.0,85033.0,0.0163569]